[Event "DVM U14 2021"]
[Site "Willingen"]
[Date "2022.08.13"]
[Round "2"]
[White "Lipinsky, Pierre"]
[Black "Finck, Jonathan"]
[Result "1-0"]
[ECO "D53"]
[WhiteElo "1560"]
[BlackElo "1424"]
[Annotator "NA RC COMBH"]
[PlyCount "161"]
[EventDate "2022.08.12"]
[EventType "team-tourn"]
[EventRounds "7"]
[EventCountry "GER"]
[SourceTitle "playchess.com"]
[Source "ChessBase"]
[SourceQuality "1"]
[TimeControl "40/5400+30:1800+30"]

1. d4 {[%emt 0:00:04]} d5 {[%emt 0:00:00]} 2. c4 {[%emt 0:00:08]} e6 {[%emt 0:00:00]} 3. Nc3 {[%emt 0:00:14]} Nf6 {[%emt 0:00:00]} 4. Bg5 {[%emt 0:00:23]} Be7 {[%emt 0:00:15]} 5. cxd5 {[%emt 0:01:43]} Nxd5 {[%emt 0:00:53]} 6. Bxe7 {[%emt 0:00:59]} Qxe7 {[%emt 0:01:48]} 7. Nf3 {[%emt 0:02:43]} Nd7 {[%emt 0:00:40]} 8. e4 {[%emt 0:01:24]} Nxc3 {[%emt 0:00:03]} 9. bxc3 {[%emt 0:00:29]} Nf6 {[%emt 0:00:49]} 10. Bd3 {[%emt 0:00:22]} O-O {[%emt 0:00:13]} 11. O-O {[%emt 0:00:34]} b6 {[%emt 0:00:33]} 12. Qc2 {[%emt 0:02:24]} g6 {[%emt 0:04:19]} 13. h3 {[%emt 0:00:48]} Bb7 {[%emt 0:06:07]} 14. Rfe1 {[%emt 0:03:54]} Rfd8 {[%emt 0:05:44]} 15. Re3 {[%emt 0:01:26]} Rac8 {[%emt 0:02:51]} 16. Ne5 {[%emt 0:02:14]} Nd7 {[%emt 0:02:57]} 17. f4 {[%emt 0:00:41]} Nxe5 {[%emt 0:00:28]} 18. fxe5 {[%emt 0:01:06]} c5 {[%emt 0:20:07]} 19. Rf3 {[%emt 0:02:40]} cxd4 {[%emt 0:01:18]} 20. c4 {[%emt 0:08:14]} b5 {[%emt 0:07:02]} 21. Raf1 {[%emt 0:03:00]} Rf8 {[%emt 0:07:23]} 22. Qe2 {[%emt 0:00:52]} bxc4 {[%emt 0:00:29]} 23. Bxc4 {[%emt 0:01:48]} Bxe4 {[%emt 0:05:26]} 24. Rf6 {[%emt 0:05:20]} Qc5 {[%emt 0:04:52]} 25. Qxe4 {[%emt 0:00:54]} Qxc4 {[%emt 0:08:00]} 26. R6f4 {[%emt 0:00:56]} Rcd8 {[%emt 0:02:00]} 27. Rh4 {[%emt 0:05:45]} Qc3 {[%emt 0:05:21]} 28. Rf3 {[%emt 0:03:14]} Qc1+ {[%emt 0:00:42]} 29. Kh2 {[%emt 0:07:15]} Rb8 {[%emt 0:01:35]} 30. Qxd4 {[%emt 0:01:13]} Rb1 {[%emt 0:03:45]} 31. Rhf4 {[%emt 0:18:58]} h5 {[%emt 0:01:00]} 32. Qxa7 {[%emt 0:01:30]} h4 {[%emt 0:00:57]} 33. Rf1 {[%emt 0:04:41]} Qb2 {[%emt 0:01:59]} 34. Rxb1 {[%emt 0:00:22]} Qxb1 {[%emt 0:00:36]} 35. Rxh4 {[%emt 0:01:29]} Qe1 {[%emt 0:00:50]} 36. Qd4 {[%emt 0:02:08]} Qa5 {[%emt 0:01:41]} 37. Qf4 {[%emt 0:03:09]} f6 {[%emt 0:02:02]} 38. Qg3 {[%emt 0:01:15]} Qxe5 {[%emt 0:00:01]} 39. Qxe5 {[%emt 0:00:01]} fxe5 {[%emt 0:00:01]} 40. Re4 {[%emt 0:00:41]} Ra8 {[%emt 0:00:16]} 41. Rxe5 {[%emt 0:30:06]} Kf7 {[%emt 0:30:11]} 42. Re2 {[%emt 0:00:02]} Kf6 {[%emt 0:00:22]} 43. Kg3 {[%emt 0:02:30]} g5 {[%emt 0:02:13]} 44. Kf3 {[%emt 0:00:30]} Kf5 {[%emt 0:02:00]} 45. Kf2 {[%emt 0:00:20]} e5 {[%emt 0:01:15]} 46. g3 {[%emt 0:02:52]} Rh8 {[%emt 0:01:02]} 47. Kg2 {[%emt 0:00:58]} Ra8 {[%emt 0:00:00]} 48. Kf1 {[%emt 0:00:00]} Ra3 {[%emt 0:00:00]} 49. Kf2 {[%emt 0:00:00]} Ra8 {[%emt 0:00:00]} 50. h4 {[%emt 0:00:00]} gxh4 {[%emt 0:00:00]} 51. gxh4 {[%emt 0:00:00]} Ra4 {[%emt 0:00:00]} 52. Kg3 {[%emt 0:00:00]} Ra3+ {[%emt 0:00:00]} 53. Kg2 {[%emt 0:00:00]} Ra4 {[%emt 0:00:00]} 54. h5 {[%emt 0:00:00]} Rh4 {[%emt 0:00:00]} 55. Rf2+ {[%emt 0:00:00]} Ke6 {[%emt 0:00:00]} 56. Kg3 {[%emt 0:00:00]} Rxh5 {[%emt 0:00:00]} 57. Rf8 {[%emt 0:00:00]} Rh7 {[%emt 0:00:00]} 58. Ra8 {[%emt 0:00:00]} Rf7 {[%emt 0:00:00]} 59. a4 {[%emt 0:00:00]} Kd7 {[%emt 0:00:00]} 60. Ra7+ Ke8 {[%emt 0:18:03]} 61. Rxf7 {[%emt 0:00:00]} Kxf7 {[%emt 0:00:00]} 62. a5 {[%emt 0:00:00]} e4 {[%emt 0:00:00]} 63. a6 {[%emt 0:00:00]} e3 {[%emt 0:00:00]} 64. a7 {[%emt 0:00:00]} e2 {[%emt 0:00:00]} 65. Kf2 {[%emt 0:00:00]} Ke7 {[%emt 0:00:00]} 66. a8=R {[%emt 0:00:00]} e1=B+ {[%emt 0:00:00]} 67. Kxe1 {[%emt 0:00:00]} Kd6 {[%emt 0:00:00]} 68. Ra5 {[%emt 0:00:00]} Ke6 {[%emt 0:00:00]} 69. Ke2 {[%emt 0:00:00]} Kd6 {[%emt 0:00:00]} 70. Kd3 {[%emt 0:00:00]} Ke6 {[%emt 0:00:00]} 71. Ke4 {[%emt 0:00:00]} Kd6 {[%emt 0:00:00]} 72. Rh5 {[%emt 0:00:00]} Kc6 {[%emt 0:00:00]} 73. Kd4 {[%emt 0:00:00]} Kb6 {[%emt 0:00:00]} 74. Kc4 {[%emt 0:00:00]} Ka6 {[%emt 0:00:00]} 75. Rb5 {[%emt 0:00:00]} Ka7 {[%emt 0:00:00]} 76. Kc5 {[%emt 0:00:00]} Ka6 {[%emt 0:00:00]} 77. Kc6 {[%emt 0:00:00]} Ka7 {[%emt 0:00:00]} 78. Rb1 {[%emt 0:00:00]} Ka8 {[%emt 0:00:00]} 79. Kb6 {[%emt 0:00:00]} Kb8 {[%emt 0:00:00]} 80. Rc1 {[%emt 0:00:00]} Ka8 81. Rc8# {[%emt 0:00:00]} 1-0

[Event "DVM U14 2021"]
[Site "Willingen"]
[Date "2022.08.13"]
[Round "2"]
[White "von Beckh, Frieda"]
[Black "Englert, Luca"]
[Result "1-0"]
[ECO "B23"]
[WhiteElo "1548"]
[BlackElo "1741"]
[Annotator "NA RC COMBH"]
[PlyCount "99"]
[EventDate "2022.08.12"]
[EventType "team-tourn"]
[EventRounds "7"]
[EventCountry "GER"]
[SourceTitle "playchess.com"]
[Source "ChessBase"]
[SourceQuality "1"]
[TimeControl "40/5400+30:1800+30"]

1. e4 {[%emt 0:00:04]} c5 {[%emt 0:00:00]} 2. Nc3 {[%emt 0:00:10]} a6 {[%emt 0:00:00]} 3. f4 {[%emt 0:00:02]} b5 {[%emt 0:00:55]} 4. Nf3 {[%emt 0:00:08]} Bb7 {[%emt 0:00:25]} 5. d3 {[%emt 0:00:16]} e6 {[%emt 0:03:12]} 6. Be2 {[%emt 0:00:14]} d5 {[%emt 0:04:26]} 7. exd5 {[%emt 0:00:15]} exd5 {[%emt 0:01:38]} 8. d4 {[%emt 0:03:50]} Nf6 {[%emt 0:03:57]} 9. O-O {[%emt 0:01:17]} Nc6 {[%emt 0:05:06]} 10. Kh1 {[%emt 0:01:57]} c4 {[%emt 0:07:12]} 11. Ne5 {[%emt 0:03:06]} Be7 {[%emt 0:04:21]} 12. Bf3 {[%emt 0:01:14]} O-O {[%emt 0:00:40]} 13. a3 {[%emt 0:09:58]} Ne4 {[%emt 0:09:27]} 14. Nxe4 {[%emt 0:01:38]} Nxe5 {[%emt 0:02:12]} 15. Nf6+ {[%emt 0:02:53]} Bxf6 {[%emt 0:02:28]} 16. dxe5 {[%emt 0:00:12]} Be7 {[%emt 0:02:14]} 17. Be3 {[%emt 0:02:55]} Qc7 {[%emt 0:02:58]} 18. c3 {[%emt 0:02:48]} a5 {[%emt 0:03:04]} 19. Qd2 {[%emt 0:01:48]} Rfd8 {[%emt 0:04:08]} 20. Rad1 {[%emt 0:05:07]} Bc6 {[%emt 0:08:32]} 21. Qd4 {[%emt 0:06:31]} Rab8 {[%emt 0:02:52]} 22. f5 {[%emt 0:08:25]} Bf8 {[%emt 0:03:28]} 23. f6 {[%emt 0:07:51]} Rb7 {[%emt 0:06:53]} 24. Qg4 {[%emt 0:01:34]} Qd7 {[%emt 0:02:24]} 25. fxg7 {[%emt 0:00:37]} Bxg7 {[%emt 0:00:41]} 26. Qg3 {[%emt 0:01:38]} Qe6 {[%emt 0:01:31]} 27. Bf4 {[%emt 0:01:40]} b4 {[%emt 0:06:08]} 28. Rfe1 {[%emt 0:03:43]} bxa3 {[%emt 0:01:32]} 29. Bg5 {[%emt 0:02:15]} Qg6 {[%emt 0:01:17]} 30. Bxd8 {[%emt 0:00:58]} axb2 {[%emt 0:00:31]} 31. Qxg6 {[%emt 0:00:04]} hxg6 {[%emt 0:00:40]} 32. Bxa5 {[%emt 0:00:27]} Ba4 {[%emt 0:00:39]} 33. Rb1 {[%emt 0:00:28]} Bc2 {[%emt 0:02:49]} 34. Bb4 {[%emt 0:00:05]} Bxb1 {[%emt 0:00:43]} 35. Rxb1 {[%emt 0:00:03]} Rxb4 {[%emt 0:00:44]} 36. cxb4 {[%emt 0:00:20]} c3 {[%emt 0:00:19]} 37. Bd1 {[%emt 0:01:56]} Bxe5 {[%emt 0:00:26]} 38. Bc2 {[%emt 0:02:44]} Kf8 {[%emt 0:01:47]} 39. Re1 {[%emt 0:00:09]} f6 {[%emt 0:00:55]} 40. Bxg6 {[%emt 0:00:04]} Ke7 {[%emt 0:00:39]} 41. b5 {[%emt 0:30:09]} Kd6 {[%emt 0:31:23]} 42. Bd3 {[%emt 0:00:19]} Kc5 {[%emt 0:00:00]} 43. h4 {[%emt 0:00:00]} Bg3 {[%emt 0:00:00]} 44. Re6 {[%emt 0:00:00]} Bxh4 {[%emt 0:00:00]} 45. b6 {[%emt 0:00:00]} Kd4 {[%emt 0:00:00]} 46. b7 {[%emt 0:00:00]} Bg3 {[%emt 0:00:00]} 47. Bc2 {[%emt 0:00:00]} Bc7 {[%emt 0:00:00]} 48. Kg1 {[%emt 0:00:00]} Kc5 {[%emt 0:00:00]} 49. Re8 {[%emt 0:00:00]} Kd4 {[%emt 0:00:00]} 50. Kf2 1-0

[Event "DVM U14 2021"]
[Site "Willingen"]
[Date "2022.08.13"]
[Round "2"]
[White "Kommessin, Felix"]
[Black "Sökler, Jakob"]
[Result "1-0"]
[ECO "B14"]
[WhiteElo "1536"]
[BlackElo "1571"]
[Annotator "NA RC COMBH"]
[PlyCount "41"]
[EventDate "2022.08.12"]
[EventType "team-tourn"]
[EventRounds "7"]
[EventCountry "GER"]
[SourceTitle "playchess.com"]
[Source "ChessBase"]
[SourceQuality "1"]
[TimeControl "40/5400+30:1800+30"]

1. e4 {[%emt 0:00:03]} c6 {[%emt 0:00:05]} 2. d4 {[%emt 0:00:04]} d5 {[%emt 0:00:06]} 3. exd5 {[%emt 0:00:05]} cxd5 {[%emt 0:00:03]} 4. c4 {[%emt 0:00:07]} Nf6 {[%emt 0:00:10]} 5. Nc3 {[%emt 0:00:55]} g6 {[%emt 0:00:20]} 6. Bg5 {[%emt 0:01:26]} dxc4 {[%emt 0:07:50]} 7. Bxc4 {[%emt 0:03:48]} Bg7 {[%emt 0:00:07]} 8. Nf3 {[%emt 0:01:01]} O-O {[%emt 0:00:26]} 9. O-O {[%emt 0:00:21]} Bf5 {[%emt 0:08:57]} 10. Qd2 {[%emt 0:06:00]} Ne4 {[%emt 0:05:32]} 11. Nxe4 {[%emt 0:12:14]} Bxe4 {[%emt 0:00:08]} 12. Rfe1 {[%emt 0:00:24]} Bxf3 {[%emt 0:13:49]} 13. Bxe7 {[%emt 0:02:31]} Qc7 {[%emt 0:00:50]} 14. Bxf8 {[%emt 0:01:46]} Bxf8 {[%emt 0:01:24]} 15. gxf3 {[%emt 0:07:11]} Qxc4 {[%emt 0:00:12]} 16. Rac1 {[%emt 0:17:44]} Qd5 {[%emt 0:06:27]} 17. Rc8 {[%emt 0:14:53]} Kg7 {[%emt 0:05:12]} 18. Rxf8 {[%emt 0:01:25]} Nc6 {[%emt 0:02:23]} 19. Rxa8 {[%emt 0:04:32]} Nxd4 {[%emt 0:00:27]} 20. Qc3 {[%emt 0:01:58]} Qd8 {[%emt 0:02:32]} 21. Qc1 {[%emt 0:00:02]} 1-0

[Event "DVM U14 2021"]
[Site "Willingen"]
[Date "2022.08.13"]
[Round "2"]
[White "Strauss, Florian"]
[Black "Lichtinger, Simon"]
[Result "0-1"]
[ECO "B07"]
[WhiteElo "1527"]
[BlackElo "1473"]
[Annotator "NA RC COMBH"]
[PlyCount "39"]
[EventDate "2022.08.12"]
[EventType "team-tourn"]
[EventRounds "7"]
[EventCountry "GER"]
[SourceTitle "playchess.com"]
[Source "ChessBase"]
[SourceQuality "1"]
[TimeControl "40/5400+30:1800+30"]

1. e4 {[%emt 0:00:02]} d6 {[%emt 0:00:03]} 2. d4 {[%emt 0:00:10]} Nf6 {[%emt 0:00:05]} 3. Bd3 {[%emt 0:00:26]} g6 {[%emt 0:00:07]} 4. Ne2 {[%emt 0:00:34]} Bg7 {[%emt 0:00:15]} 5. Nbc3 {[%emt 0:00:48]} O-O {[%emt 0:00:41]} 6. Be3 {[%emt 0:01:13]} Ng4 {[%emt 0:01:18]} 7. Bf4 {[%emt 0:00:54]} e5 {[%emt 0:01:35]} 8. dxe5 {[%emt 0:01:38]} dxe5 {[%emt 0:00:09]} 9. Bg3 {[%emt 0:00:57]} Re8 {[%emt 0:02:24]} 10. h3 {[%emt 0:00:44]} Nf6 {[%emt 0:00:13]} 11. O-O {[%emt 0:00:21]} c6 {[%emt 0:00:41]} 12. Bc4 {[%emt 0:01:52]} Qxd1 {[%emt 0:02:12]} 13. Raxd1 {[%emt 0:01:58]} b5 {[%emt 0:00:18]} 14. Bb3 {[%emt 0:00:37]} b4 {[%emt 0:00:08]} 15. Na4 {[%emt 0:01:28]} Nxe4 {[%emt 0:00:50]} 16. f3 {[%emt 0:00:51]} Ba6 {[%emt 0:01:12]} 17. Rfe1 {[%emt 0:00:57]} Bxe2 {[%emt 0:00:16]} 18. Rf1 {[%emt 0:00:24]} Ba6 19. fxe4 {[%emt 0:00:04]} Be2 20. Bxf7+ {[%emt 0:00:03]} 0-1

[Event "DVM U14 2021"]
[Site "Willingen"]
[Date "2022.08.13"]
[Round "2"]
[White "Spranger, Tobias"]
[Black "Menne, Lukas"]
[Result "1/2-1/2"]
[ECO "D46"]
[WhiteElo "1522"]
[BlackElo "1190"]
[Annotator "NA RC COMBH"]
[PlyCount "57"]
[EventDate "2022.08.12"]
[EventType "team-tourn"]
[EventRounds "7"]
[EventCountry "GER"]
[SourceTitle "playchess.com"]
[Source "ChessBase"]
[SourceQuality "1"]
[TimeControl "40/5400+30:1800+30"]

1. d4 {[%emt 0:00:03]} d5 {[%emt 0:00:06]} 2. c4 {[%emt 0:00:03]} e6 {[%emt 0:00:06]} 3. Nc3 {[%emt 0:00:05]} c6 {[%emt 0:00:08]} 4. Nf3 {[%emt 0:00:27]} Nf6 {[%emt 0:00:22]} 5. e3 {[%emt 0:00:30]} Be7 {[%emt 0:00:19]} 6. Bd3 {[%emt 0:00:14]} O-O {[%emt 0:00:13]} 7. O-O {[%emt 0:00:06]} Nbd7 {[%emt 0:00:46]} 8. Qc2 {[%emt 0:01:03]} dxc4 {[%emt 0:03:09]} 9. Bxc4 {[%emt 0:01:27]} Qc7 {[%emt 0:00:50]} 10. a3 {[%emt 0:01:02]} e5 {[%emt 0:00:37]} 11. Ne4 {[%emt 0:03:31]} exd4 {[%emt 0:01:26]} 12. exd4 {[%emt 0:07:35]} Nxe4 {[%emt 0:00:57]} 13. Qxe4 {[%emt 0:00:20]} Nf6 {[%emt 0:00:17]} 14. Qe5 {[%emt 0:00:50]} Bd6 {[%emt 0:01:07]} 15. Qe2 {[%emt 0:01:03]} Re8 {[%emt 0:01:15]} 16. Qc2 {[%emt 0:00:21]} Bg4 {[%emt 0:01:03]} 17. Ng5 {[%emt 0:01:48]} Bxh2+ {[%emt 0:02:35]} 18. Kh1 {[%emt 0:00:22]} Bf4 {[%emt 0:00:22]} 19. Bxf7+ {[%emt 0:02:43]} Kh8 {[%emt 0:01:41]} 20. Bxe8 {[%emt 0:01:32]} Rxe8 {[%emt 0:00:07]} 21. Be3 {[%emt 0:03:56]} h6 {[%emt 0:02:12]} 22. Nf7+ {[%emt 0:02:57]} Qxf7 {[%emt 0:03:33]} 23. Bxf4 {[%emt 0:00:23]} Re2 {[%emt 0:03:33]} 24. Qd3 {[%emt 0:04:30]} Qh5+ {[%emt 0:02:37]} 25. Kg1 {[%emt 0:00:35]} Bf5 {[%emt 0:01:41]} 26. Qf3 {[%emt 0:02:03]} Bg4 {[%emt 0:00:31]} 27. Qd3 {[%emt 0:04:42]} Bf5 {[%emt 0:02:18]} 28. Qf3 {[%emt 0:03:10]} Bg4 {[%emt 0:01:08]} 29. Qd3 {[%emt 0:01:31]} 1/2-1/2

[Event "DVM U14 2021"]
[Site "Willingen"]
[Date "2022.08.13"]
[Round "2"]
[White "Stein, Theodor"]
[Black "Freude, Paul"]
[Result "1-0"]
[ECO "B28"]
[WhiteElo "1510"]
[BlackElo "1477"]
[Annotator "NA RC COMBH"]
[PlyCount "97"]
[EventDate "2022.08.12"]
[EventType "team-tourn"]
[EventRounds "7"]
[EventCountry "GER"]
[SourceTitle "playchess.com"]
[Source "ChessBase"]
[SourceQuality "1"]
[TimeControl "40/5400+30:1800+30"]

1. e4 {[%emt 0:00:21]} c5 {[%emt 0:01:00]} 2. c4 {[%emt 0:01:16]} g6 {[%emt 0:00:12]} 3. Nf3 {[%emt 0:00:30]} Bg7 {[%emt 0:00:31]} 4. d4 {[%emt 0:00:24]} cxd4 {[%emt 0:00:06]} 5. Nxd4 {[%emt 0:00:46]} Nc6 {[%emt 0:00:07]} 6. Be3 {[%emt 0:00:57]} d6 {[%emt 0:00:10]} 7. Nc3 {[%emt 0:01:31]} a6 {[%emt 0:00:15]} 8. Qd2 {[%emt 0:00:50]} Nf6 {[%emt 0:00:30]} 9. f3 {[%emt 0:01:16]} O-O {[%emt 0:00:04]} 10. Be2 {[%emt 0:00:28]} Qc7 {[%emt 0:00:19]} 11. O-O {[%emt 0:02:02]} Rd8 {[%emt 0:01:31]} 12. Rac1 {[%emt 0:06:04]} Qb8 {[%emt 0:08:41]} 13. Rfd1 {[%emt 0:04:16]} Nd7 {[%emt 0:04:47]} 14. Nd5 {[%emt 0:02:25]} Re8 {[%emt 0:14:45]} 15. a3 {[%emt 0:03:19]} Nxd4 {[%emt 0:00:15]} 16. Bxd4 {[%emt 0:00:05]} Bxd4+ {[%emt 0:00:08]} 17. Qxd4 {[%emt 0:00:37]} Nc5 {[%emt 0:03:26]} 18. Qe3 {[%emt 0:04:34]} b6 {[%emt 0:09:58]} 19. b4 {[%emt 0:03:11]} Nd7 {[%emt 0:05:18]} 20. f4 {[%emt 0:03:14]} Bb7 {[%emt 0:03:11]} 21. Nc3 {[%emt 0:08:54]} Qa7 {[%emt 0:06:39]} 22. Kh1 {[%emt 0:02:12]} Rad8 {[%emt 0:02:48]} 23. Rd3 {[%emt 0:04:15]} Qa8 {[%emt 0:09:04]} 24. Bf3 {[%emt 0:10:26]} Nf6 {[%emt 0:02:02]} 25. Re1 {[%emt 0:01:34]} Rc8 {[%emt 0:05:01]} 26. Na4 {[%emt 0:03:55]} Rc7 {[%emt 0:03:11]} 27. Nxb6 {[%emt 0:01:41]} Qb8 {[%emt 0:04:06]} 28. e5 {[%emt 0:01:52]} dxe5 {[%emt 0:00:29]} 29. fxe5 {[%emt 0:02:06]} Bxf3 {[%emt 0:00:33]} 30. gxf3 {[%emt 0:01:13]} Nh5 {[%emt 0:00:39]} 31. c5 {[%emt 0:02:21]} Qa7 {[%emt 0:01:04]} 32. Red1 {[%emt 0:03:56]} a5 {[%emt 0:04:00]} 33. Rd8 {[%emt 0:00:41]} Rxd8 {[%emt 0:00:08]} 34. Rxd8+ {[%emt 0:00:04]} Kg7 {[%emt 0:00:14]} 35. Ra8 {[%emt 0:00:16]} Qb7 {[%emt 0:00:32]} 36. Rxa5 {[%emt 0:02:49]} Rd7 {[%emt 0:01:09]} 37. Nxd7 {[%emt 0:01:27]} Qxd7 {[%emt 0:01:14]} 38. Kg2 {[%emt 0:01:15]} Qf5 {[%emt 0:03:34]} 39. Kf2 {[%emt 0:01:16]} Qh3 {[%emt 0:02:01]} 40. Ke2 {[%emt 0:04:55]} Qg2+ {[%emt 0:00:58]} 41. Kd3 {[%emt 0:31:07]} Qf1+ {[%emt 0:30:47]} 42. Kc3 {[%emt 0:03:54]} e6 {[%emt 0:02:05]} 43. c6 {[%emt 0:00:25]} Qa1+ {[%emt 0:00:12]} 44. Kc4 {[%emt 0:00:23]} Qa2+ {[%emt 0:00:30]} 45. Kb5 {[%emt 0:04:19]} Qd5+ {[%emt 0:00:19]} 46. Kb6 {[%emt 0:00:16]} Qd8+ {[%emt 0:00:08]} 47. c7 {[%emt 0:00:21]} Qc8 {[%emt 0:00:21]} 48. Qe4 {[%emt 0:00:05]} f5 {[%emt 0:00:25]} 49. Qd4 {[%emt 0:00:47]} 1-0

[Event "DVM U14 2021"]
[Site "Willingen"]
[Date "2022.08.13"]
[Round "2"]
[White "Eichhorn, Valentin"]
[Black "Schwartz, Oliver"]
[Result "0-1"]
[ECO "E14"]
[WhiteElo "1506"]
[BlackElo "1872"]
[Annotator "NA RC COMBH"]
[PlyCount "108"]
[EventDate "2022.08.12"]
[EventType "team-tourn"]
[EventRounds "7"]
[EventCountry "GER"]
[SourceTitle "playchess.com"]
[Source "ChessBase"]
[SourceQuality "1"]
[TimeControl "40/5400+30:1800+30"]

1. d4 {[%emt 0:00:17]} Nf6 {[%emt 0:00:00]} 2. Nf3 {[%emt 0:01:07]} e6 {[%emt 0:00:41]} 3. e3 {[%emt 0:01:57]} c5 {[%emt 0:00:45]} 4. b3 {[%emt 0:02:12]} b6 {[%emt 0:00:51]} 5. Bd3 {[%emt 0:01:41]} Bb7 {[%emt 0:00:26]} 6. Nbd2 {[%emt 0:06:05]} Be7 {[%emt 0:01:00]} 7. Bb2 {[%emt 0:02:13]} d6 {[%emt 0:01:57]} 8. O-O {[%emt 0:00:57]} O-O $11 {[%emt 0:01:40]} 9. Re1 {[%emt 0:02:23]} Nbd7 {[%emt 0:06:11]} 10. c4 {[%emt 0:04:52]} Qc7 {[%emt 0:01:18]} 11. Rc1 {[%emt 0:05:26]} Rfe8 {[%emt 0:01:12]} 12. Qc2 {[%emt 0:01:27]} h6 {[%emt 0:05:15]} 13. Qb1 {[%emt 0:03:31]} Bf8 {[%emt 0:09:53]} 14. Ne4 {[%emt 0:09:55]} Nxe4 {[%emt 0:00:36]} 15. Bxe4 {[%emt 0:02:07]} Be7 {[%emt 0:01:31]} 16. Bxb7 {[%emt 0:00:06]} Qxb7 {[%emt 0:00:54]} 17. Rcd1 {[%emt 0:05:42]} Rad8 {[%emt 0:06:24]} 18. d5 {[%emt 0:03:55]} e5 {[%emt 0:00:56]} 19. e4 {[%emt 0:02:05]} b5 {[%emt 0:01:07]} 20. Nd2 {[%emt 0:01:41]} Rb8 {[%emt 0:02:06]} 21. Qc2 {[%emt 0:01:43]} Rec8 {[%emt 0:02:47]} 22. cxb5 {[%emt 0:01:05]} Qxb5 {[%emt 0:00:50]} 23. Nc4 {[%emt 0:02:45]} Nb6 {[%emt 0:02:57]} 24. Rb1 {[%emt 0:04:19]} Qa6 {[%emt 0:03:09]} 25. Ba1 {[%emt 0:05:43]} Nxc4 {[%emt 0:02:07]} 26. bxc4 {[%emt 0:00:45]} Rb4 {[%emt 0:13:40]} 27. Bc3 {[%emt 0:04:59]} Qxc4 {[%emt 0:01:38]} 28. Rbc1 {[%emt 0:09:01]} Rb6 {[%emt 0:05:03]} 29. Ba5 {[%emt 0:00:46]} Qxc2 {[%emt 0:00:30]} 30. Rxc2 {[%emt 0:01:20]} Rb5 {[%emt 0:00:53]} 31. Bc3 {[%emt 0:01:03]} Rcb8 {[%emt 0:00:45]} 32. h3 {[%emt 0:01:08]} Bd8 {[%emt 0:01:11]} 33. Ree2 {[%emt 0:03:14]} Ba5 {[%emt 0:03:41]} 34. Bxa5 {[%emt 0:00:11]} Rxa5 {[%emt 0:00:30]} 35. Rb2 {[%emt 0:00:51]} Rab5 {[%emt 0:00:06]} 36. Rxb5 {[%emt 0:00:04]} Rxb5 {[%emt 0:00:51]} 37. Rc2 {[%emt 0:04:21]} Kf8 {[%emt 0:04:26]} 38. Rc4 {[%emt 0:02:36]} Rb1+ {[%emt 0:00:39]} 39. Kh2 {[%emt 0:00:08]} Rb4 {[%emt 0:02:13]} 40. Rc3 {[%emt 0:02:36]} Rxe4 {[%emt 0:00:15]} 41. Ra3 {[%emt 0:30:43]} Rd4 {[%emt 0:30:21]} 42. Rxa7 {[%emt 0:00:10]} Rxd5 {[%emt 0:00:16]} 43. a4 {[%emt 0:00:00]} Rd3 {[%emt 0:00:00]} 44. a5 {[%emt 0:00:00]} Ra3 {[%emt 0:00:00]} 45. a6 {[%emt 0:00:00]} c4 {[%emt 0:00:00]} 46. Ra8+ {[%emt 0:00:00]} Ke7 {[%emt 0:00:00]} 47. Rc8 {[%emt 0:00:00]} d5 {[%emt 0:00:00]} 48. Rc7+ {[%emt 0:00:00]} Kd6 {[%emt 0:00:00]} 49. Rxf7 {[%emt 0:00:00]} Rxa6 {[%emt 0:00:00]} 50. Rxg7 {[%emt 0:00:00]} Rc6 51. Rg6+ {[%emt 0:33:46]} Kc5 {[%emt 0:00:00]} 52. Rg3 {[%emt 0:00:00]} Kd4 {[%emt 0:00:00]} 53. Re3 {[%emt 0:00:00]} c3 {[%emt 0:00:00]} 54. Re1 {[%emt 0:00:00]} c2 {[%emt 0:00:00]} 0-1

[Event "DVM U14 2021"]
[Site "Willingen"]
[Date "2022.08.13"]
[Round "2"]
[White "Wagner, Anton"]
[Black "Fock, Madiha"]
[Result "1/2-1/2"]
[ECO "D02"]
[WhiteElo "1479"]
[BlackElo "1472"]
[Annotator "NA RC COMBH"]
[PlyCount "77"]
[EventDate "2022.08.12"]
[EventType "team-tourn"]
[EventRounds "7"]
[EventCountry "GER"]
[SourceTitle "playchess.com"]
[Source "ChessBase"]
[SourceQuality "1"]
[TimeControl "40/5400+30:1800+30"]

1. Nf3 {[%emt 0:00:01]} Nf6 {[%emt 0:00:12]} 2. d4 {[%emt 0:00:06]} d5 {[%emt 0:00:20]} 3. Bf4 {[%emt 0:00:07]} e6 {[%emt 0:00:58]} 4. e3 {[%emt 0:00:15]} c5 {[%emt 0:01:05]} 5. c3 {[%emt 0:06:50]} Nc6 {[%emt 0:04:24]} 6. Bd3 {[%emt 0:01:05]} Be7 {[%emt 0:04:46]} 7. dxc5 {[%emt 0:11:22]} Bxc5 {[%emt 0:00:14]} 8. O-O {[%emt 0:00:47]} O-O {[%emt 0:04:45]} 9. Qc2 {[%emt 0:07:34]} Re8 {[%emt 0:03:21]} 10. Bg5 {[%emt 0:02:54]} h6 {[%emt 0:02:07]} 11. Bh4 {[%emt 0:07:10]} Be7 {[%emt 0:05:52]} 12. Nbd2 {[%emt 0:04:52]} e5 {[%emt 0:07:53]} 13. Bxf6 {[%emt 0:11:16]} Bxf6 {[%emt 0:00:33]} 14. e4 {[%emt 0:01:06]} Bg4 {[%emt 0:06:09]} 15. exd5 {[%emt 0:03:02]} Bxf3 {[%emt 0:00:57]} 16. Nxf3 {[%emt 0:01:40]} Qxd5 {[%emt 0:02:05]} 17. Be4 {[%emt 0:01:34]} Qb5 {[%emt 0:03:06]} 18. Rad1 {[%emt 0:08:09]} Rad8 {[%emt 0:04:01]} 19. Rxd8 {[%emt 0:07:12]} Rxd8 {[%emt 0:00:13]} 20. Bxc6 {[%emt 0:00:24]} Qxc6 {[%emt 0:01:01]} 21. Re1 {[%emt 0:02:00]} Qd5 {[%emt 0:04:57]} 22. Qe4 {[%emt 0:03:48]} Qxe4 {[%emt 0:04:21]} 23. Rxe4 {[%emt 0:00:14]} Rd1+ {[%emt 0:00:21]} 24. Re1 {[%emt 0:00:10]} Rxe1+ {[%emt 0:00:35]} 25. Nxe1 {[%emt 0:00:01]} e4 {[%emt 0:02:50]} 26. Nc2 {[%emt 0:01:19]} Bg5 {[%emt 0:04:19]} 27. Kf1 {[%emt 0:00:46]} Bc1 {[%emt 0:01:55]} 28. b3 {[%emt 0:00:09]} Bb2 {[%emt 0:00:33]} 29. c4 {[%emt 0:00:12]} f5 {[%emt 0:01:44]} 30. Ke2 {[%emt 0:00:32]} Be5 {[%emt 0:01:24]} 31. h3 {[%emt 0:02:24]} Kf7 {[%emt 0:03:00]} 32. Ne3 {[%emt 0:01:02]} Ke6 {[%emt 0:03:28]} 33. Nd5 {[%emt 0:01:08]} g5 {[%emt 0:01:57]} 34. f3 {[%emt 0:04:57]} exf3+ {[%emt 0:02:57]} 35. Kxf3 {[%emt 0:00:16]} Bd6 {[%emt 0:01:53]} 36. Nc3 {[%emt 0:05:38]} Ke5 {[%emt 0:05:15]} 37. g4 {[%emt 0:03:52]} f4 {[%emt 0:01:49]} 38. Ne2 {[%emt 0:00:27]} Bc5 {[%emt 0:02:10]} 39. Nc3 {[%emt 0:00:27]} 1/2-1/2